[Event "Titled Tuesday Blitz October 5 2021"]
[White "Temirkanov, David"]
[Black "Krivonosov, Oleg"]
[WhiteFideId "4168534"]
[BlackFideId "11600349"]
[WhiteElo "2125"]
[BlackElo "2469"]
[Result "1/2-1/2"]
[Round "01"]
[TimeControl "180+1"]
[Date "2021.10.05"]
[WhiteClock "0:00:55"]
[BlackClock "0:01:53"]

1. d4 {[%clk 0:02:57]}  d5 {[%clk 0:02:59]} 2. Bg5 {[%clk 0:02:56]}  h6 {[%clk 0:02:58]} 3. Bh4 {[%clk 0:02:55]}  c6 {[%clk 0:02:58]} 4. Nf3 {[%clk 0:02:53]}  Bf5 {[%clk 0:02:58]} 5. e3 {[%clk 0:02:52]}  Nd7 {[%clk 0:02:57]} 6. Bd3 {[%clk 0:02:52]}  Bxd3 {[%clk 0:02:55]} 7. cxd3 {[%clk 0:02:53]}  Ngf6 {[%clk 0:02:54]} 8. O-O {[%clk 0:02:52]}  e6 {[%clk 0:02:54]} 9. Nc3 {[%clk 0:02:51]}  Be7 {[%clk 0:02:54]} 10. Qe2 {[%clk 0:02:41]}  O-O {[%clk 0:02:53]} 11. Ne5 {[%clk 0:02:34]}  Nxe5 {[%clk 0:02:51]} 12. dxe5 {[%clk 0:02:34]}  Nd7 {[%clk 0:02:52]} 13. Bxe7 {[%clk 0:02:34]}  Qxe7 {[%clk 0:02:52]} 14. d4 {[%clk 0:02:34]}  f6 {[%clk 0:02:46]} 15. f4 {[%clk 0:02:25]}  fxe5 {[%clk 0:02:45]} 16. fxe5 {[%clk 0:02:21]}  Rxf1+ {[%clk 0:02:43]} 17. Rxf1 {[%clk 0:02:20]}  Rf8 {[%clk 0:02:43]} 18. Rxf8+ {[%clk 0:02:17]}  Qxf8 {[%clk 0:02:43]} 19. Qg4 {[%clk 0:02:08]}  Qf7 {[%clk 0:02:36]} 20. Ne2 {[%clk 0:02:01]}  Nf8 {[%clk 0:02:34]} 21. Nf4 {[%clk 0:01:59]}  Kh7 {[%clk 0:02:33]} 22. h4 {[%clk 0:01:59]}  g6 {[%clk 0:02:24]} 23. b3 {[%clk 0:01:45]}  Qf5 {[%clk 0:02:16]} 24. Qxf5 {[%clk 0:01:43]}  gxf5 {[%clk 0:02:17]} 25. Kf2 {[%clk 0:01:37]}  Kg7 {[%clk 0:02:17]} 26. Kf3 {[%clk 0:01:36]}  Kf7 {[%clk 0:02:17]} 27. g4 {[%clk 0:01:34]}  Ng6 {[%clk 0:02:10]} 28. Nxg6 {[%clk 0:01:27]}  Kxg6 {[%clk 0:02:11]} 29. Kf4 {[%clk 0:01:24]}  fxg4 {[%clk 0:02:10]} 30. Kxg4 {[%clk 0:01:25]}  a5 {[%clk 0:02:04]} 31. a3 {[%clk 0:01:13]}  b6 {[%clk 0:02:04]} 32. b4 {[%clk 0:01:12]}  axb4 {[%clk 0:01:57]} 33. axb4 {[%clk 0:01:11]}  Kg7 {[%clk 0:01:57]} 34. Kf4 {[%clk 0:01:08]}  Kg6 {[%clk 0:01:56]} 35. Kg4 {[%clk 0:01:08]}  Kf7 {[%clk 0:01:56]} 36. Kf4 {[%clk 0:01:04]}  Kg7 {[%clk 0:01:55]} 37. Kg4 {[%clk 0:01:04]}  Kg6 {[%clk 0:01:55]} 38. Kf4 {[%clk 0:00:56]}  Kh5 {[%clk 0:01:54]} 39. Kg3 {[%clk 0:00:56]}  Kg6 {[%clk 0:01:53]} 40. Kg4 {[%clk 0:00:55]} 1/2-1/2


[Site "https://www.chess.com"]

[Event "Titled Tuesday Blitz October 5 2021"]
[White "Timofeev, Artyom"]
[Black "Veiga, Emerson de Sousa"]
[WhiteFideId "4140419"]
[BlackFideId "2151898"]
[WhiteElo "2591"]
[BlackElo "2034"]
[Result "1-0"]
[Round "01"]
[TimeControl "180+1"]
[Date "2021.10.05"]
[WhiteClock "0:00:39"]
[BlackClock "0:00:02"]

1. c4 {[%clk 0:03:00]}  Nf6 {[%clk 0:02:56]} 2. Nc3 {[%clk 0:03:00]}  e5 {[%clk 0:02:54]} 3. e3 {[%clk 0:02:59]}  d5 {[%clk 0:02:53]} 4. cxd5 {[%clk 0:02:59]}  Nxd5 {[%clk 0:02:54]} 5. Nf3 {[%clk 0:02:59]}  Nc6 {[%clk 0:02:53]} 6. Bb5 {[%clk 0:02:59]}  Nxc3 {[%clk 0:02:53]} 7. bxc3 {[%clk 0:02:58]}  Bd6 {[%clk 0:02:53]} 8. d4 {[%clk 0:02:58]}  exd4 {[%clk 0:02:52]} 9. cxd4 {[%clk 0:02:55]}  Bd7 {[%clk 0:02:51]} 10. O-O {[%clk 0:02:55]}  O-O {[%clk 0:02:51]} 11. Bb2 {[%clk 0:02:44]}  Bg4 {[%clk 0:02:46]} 12. Be2 {[%clk 0:02:43]}  Qe7 {[%clk 0:02:43]} 13. Rc1 {[%clk 0:02:39]}  Rad8 {[%clk 0:02:26]} 14. h3 {[%clk 0:02:38]}  Bh5 {[%clk 0:02:21]} 15. Nd2 {[%clk 0:02:34]}  Bxe2 {[%clk 0:02:16]} 16. Qxe2 {[%clk 0:02:34]}  Rfe8 {[%clk 0:02:11]} 17. Nc4 {[%clk 0:02:29]}  Bf4 {[%clk 0:01:52]} 18. Qf3 {[%clk 0:02:25]}  Bg5 {[%clk 0:01:46]} 19. Rcd1 {[%clk 0:02:19]}  Qb4 {[%clk 0:01:32]} 20. Rc1 {[%clk 0:02:18]}  Bf6 {[%clk 0:01:22]} 21. a3 {[%clk 0:02:13]}  Qb3 {[%clk 0:01:18]} 22. Qd1 {[%clk 0:02:10]}  Qb5 {[%clk 0:01:15]} 23. Qc2 {[%clk 0:02:06]}  Ne7 {[%clk 0:01:05]} 24. Nd2 {[%clk 0:02:00]}  c6 {[%clk 0:01:02]} 25. Nf3 {[%clk 0:01:59]}  Nd5 {[%clk 0:01:00]} 26. Rfd1 {[%clk 0:01:57]}  Re6 {[%clk 0:00:53]} 27. a4 {[%clk 0:01:55]}  Qa5 {[%clk 0:00:52]} 28. Ba3 {[%clk 0:01:51]}  Rde8 {[%clk 0:00:44]} 29. Bb2 {[%clk 0:01:31]}  Nb6 {[%clk 0:00:42]} 30. Ra1 {[%clk 0:01:30]}  Qh5 {[%clk 0:00:37]} 31. a5 {[%clk 0:01:25]}  Nd5 {[%clk 0:00:37]} 32. a6 {[%clk 0:01:16]}  b6 {[%clk 0:00:37]} 33. Rac1 {[%clk 0:01:12]}  h6 {[%clk 0:00:36]} 34. Qa4 {[%clk 0:01:08]}  b5 {[%clk 0:00:22]} 35. Qb3 {[%clk 0:01:08]}  Qf5 {[%clk 0:00:20]} 36. Qd3 {[%clk 0:01:04]}  Qh5 {[%clk 0:00:17]} 37. Re1 {[%clk 0:01:01]}  Bd8 {[%clk 0:00:14]} 38. Kh1 {[%clk 0:00:52]}  Bc7 {[%clk 0:00:12]} 39. Ne5 {[%clk 0:00:49]}  Bxe5 {[%clk 0:00:05]} 40. dxe5 {[%clk 0:00:49]}  f6 {[%clk 0:00:05]} 41. exf6 {[%clk 0:00:48]}  Nxf6 {[%clk 0:00:04]} 42. Qd4 {[%clk 0:00:43]}  Rf8 {[%clk 0:00:03]} 43. Qxa7 {[%clk 0:00:40]}  Qf5 {[%clk 0:00:02]} 44. e4 {[%clk 0:00:39]} 1-0


[Site "https://www.chess.com"]

[Event "Titled Tuesday Blitz October 5 2021"]
[White "Titichoca Daza, Daniel"]
[Black "Ibrahimli, Murad"]
[WhiteFideId "3309550"]
[BlackFideId "13410229"]
[WhiteElo "1968"]
[BlackElo "2109"]
[Result "0-1"]
[Round "01"]
[TimeControl "180+1"]
[Date "2021.10.05"]
[WhiteClock "0:00:02"]
[BlackClock "0:00:09"]

1. e4 {[%clk 0:03:00]}  c5 {[%clk 0:02:57]} 2. Nc3 {[%clk 0:03:00]}  Nc6 {[%clk 0:02:57]} 3. Bb5 {[%clk 0:02:57]}  Nd4 {[%clk 0:02:57]} 4. Nf3 {[%clk 0:02:57]}  e6 {[%clk 0:02:57]} 5. O-O {[%clk 0:02:55]}  Nxf3+ {[%clk 0:02:57]} 6. Qxf3 {[%clk 0:02:54]}  a6 {[%clk 0:02:57]} 7. Bd3 {[%clk 0:02:50]}  Ne7 {[%clk 0:02:57]} 8. b3 {[%clk 0:02:47]}  Nc6 {[%clk 0:02:56]} 9. a3 {[%clk 0:02:45]}  Bd6 {[%clk 0:02:54]} 10. Bb2 {[%clk 0:02:45]}  Qh4 {[%clk 0:02:48]} 11. g3 {[%clk 0:02:41]}  Qh3 {[%clk 0:02:48]} 12. Qg2 {[%clk 0:02:40]}  Qxg2+ {[%clk 0:02:47]} 13. Kxg2 {[%clk 0:02:39]}  f6 {[%clk 0:02:47]} 14. f4 {[%clk 0:02:38]}  b5 {[%clk 0:02:44]} 15. Rae1 {[%clk 0:02:25]}  Bb7 {[%clk 0:02:43]} 16. Nd1 {[%clk 0:02:20]}  Be7 {[%clk 0:02:33]} 17. Ne3 {[%clk 0:02:10]}  Rc8 {[%clk 0:02:23]} 18. c3 {[%clk 0:01:44]}  Na5 {[%clk 0:02:16]} 19. Bc2 {[%clk 0:01:44]}  h5 {[%clk 0:02:12]} 20. d3 {[%clk 0:01:31]}  Nc6 {[%clk 0:02:05]} 21. h4 {[%clk 0:01:27]}  Bd8 {[%clk 0:02:04]} 22. d4 {[%clk 0:01:22]}  cxd4 {[%clk 0:02:00]} 23. cxd4 {[%clk 0:01:21]}  Ne7 {[%clk 0:02:00]} 24. Kf2 {[%clk 0:00:56]}  Bb6 {[%clk 0:01:58]} 25. Bd3 {[%clk 0:00:51]}  Kf7 {[%clk 0:01:54]} 26. Rc1 {[%clk 0:00:51]}  Nc6 {[%clk 0:01:50]} 27. Nc2 {[%clk 0:00:26]}  Na5 {[%clk 0:01:47]} 28. Na1 {[%clk 0:00:24]}  d5 {[%clk 0:01:18]} 29. e5 {[%clk 0:00:23]}  Nc6 {[%clk 0:01:18]} 30. Ke3 {[%clk 0:00:22]}  Ke7 {[%clk 0:01:05]} 31. Bc3 {[%clk 0:00:12]}  fxe5 {[%clk 0:00:54]} 32. fxe5 {[%clk 0:00:13]}  Nxe5 {[%clk 0:00:54]} 33. Bb4+ {[%clk 0:00:13]}  Kd7 {[%clk 0:00:55]} 34. Rxc8 {[%clk 0:00:06]}  Rxc8 {[%clk 0:00:54]} 35. Nc2 {[%clk 0:00:06]}  Ng4+ {[%clk 0:00:53]} 36. Kd2 {[%clk 0:00:06]}  Nf6 {[%clk 0:00:54]} 37. Bg6 {[%clk 0:00:05]}  a5 {[%clk 0:00:47]} 38. Bc3 {[%clk 0:00:06]}  Ke7 {[%clk 0:00:39]} 39. Bd3 {[%clk 0:00:05]}  Bc6 {[%clk 0:00:39]} 40. Ne3 {[%clk 0:00:04]}  Bd7 {[%clk 0:00:35]} 41. Ng2 {[%clk 0:00:04]}  Bc7 {[%clk 0:00:25]} 42. Nf4 {[%clk 0:00:05]}  Bd6 {[%clk 0:00:25]} 43. Ng6+ {[%clk 0:00:04]}  Ke8 {[%clk 0:00:25]} 44. Ne5 {[%clk 0:00:05]}  Bxa3 {[%clk 0:00:25]} 45. Bg6+ {[%clk 0:00:05]}  Ke7 {[%clk 0:00:26]} 46. Bxa5 {[%clk 0:00:04]}  Bd6 {[%clk 0:00:20]} 47. Nd3 {[%clk 0:00:04]}  Ne4+ {[%clk 0:00:18]} 48. Bxe4 {[%clk 0:00:03]}  dxe4 {[%clk 0:00:19]} 49. Ne5 {[%clk 0:00:04]}  Be8 {[%clk 0:00:17]} 50. Ke3 {[%clk 0:00:03]}  Rc2 {[%clk 0:00:10]} 51. Kxe4 {[%clk 0:00:02]}  Rb2 {[%clk 0:00:11]} 52. Bb6 {[%clk 0:00:01]}  Rxb3 {[%clk 0:00:10]} 53. Ra1 {[%clk 0:00:02]}  Ra3 {[%clk 0:00:09]} 0-1


[Site "https://www.chess.com"]

[Event "Titled Tuesday Blitz October 5 2021"]
[White "Todorovic, Bojan"]
[Black "Atabayev, Saparmyrat"]
[WhiteFideId "917087"]
[BlackFideId "14000571"]
[WhiteElo "2266"]
[BlackElo "2483"]
[Result "0-1"]
[Round "01"]
[TimeControl "180+1"]
[Date "2021.10.05"]
[WhiteClock "0:00:38"]
[BlackClock "0:02:02"]

1. Nf3 {[%clk 0:02:54]}  Nf6 {[%clk 0:02:55]} 2. c4 {[%clk 0:02:53]}  g6 {[%clk 0:02:54]} 3. Nc3 {[%clk 0:02:52]}  Bg7 {[%clk 0:02:55]} 4. d4 {[%clk 0:02:52]}  O-O {[%clk 0:02:56]} 5. e4 {[%clk 0:02:52]}  d6 {[%clk 0:02:56]} 6. Be2 {[%clk 0:02:52]}  e5 {[%clk 0:02:55]} 7. O-O {[%clk 0:02:53]}  Nc6 {[%clk 0:02:55]} 8. d5 {[%clk 0:02:52]}  Ne7 {[%clk 0:02:55]} 9. Nd2 {[%clk 0:02:52]}  Nd7 {[%clk 0:02:52]} 10. b4 {[%clk 0:02:51]}  f5 {[%clk 0:02:52]} 11. c5 {[%clk 0:02:32]}  dxc5 {[%clk 0:02:47]} 12. bxc5 {[%clk 0:02:30]}  Nxc5 {[%clk 0:02:48]} 13. Ba3 {[%clk 0:02:26]}  Nxe4 {[%clk 0:02:47]} 14. Ndxe4 {[%clk 0:02:23]}  fxe4 {[%clk 0:02:48]} 15. d6 {[%clk 0:02:21]}  cxd6 {[%clk 0:02:44]} 16. Qxd6 {[%clk 0:02:18]}  Nf5 {[%clk 0:02:30]} 17. Bc4+ {[%clk 0:02:16]}  Kh8 {[%clk 0:02:29]} 18. Qxd8 {[%clk 0:02:14]}  Rxd8 {[%clk 0:02:30]} 19. Nxe4 {[%clk 0:02:14]}  Bd7 {[%clk 0:02:24]} 20. Ng5 {[%clk 0:02:13]}  Be8 {[%clk 0:02:24]} 21. Ne6 {[%clk 0:01:41]}  Rdc8 {[%clk 0:02:22]} 22. Rac1 {[%clk 0:01:34]}  Bh6 {[%clk 0:02:18]} 23. f4 {[%clk 0:01:31]}  Bf7 {[%clk 0:02:12]} 24. Bb2 {[%clk 0:01:28]}  Rxc4 {[%clk 0:02:10]} 25. Rxc4 {[%clk 0:01:20]}  Bxe6 {[%clk 0:02:09]} 26. Bxe5+ {[%clk 0:01:20]}  Kg8 {[%clk 0:02:09]} 27. Rc7 {[%clk 0:01:17]}  Bd5 {[%clk 0:02:08]} 28. Rd1 {[%clk 0:01:12]}  Bc6 {[%clk 0:02:07]} 29. g4 {[%clk 0:01:06]}  Ne3 {[%clk 0:02:04]} 30. Rd6 {[%clk 0:00:40]}  Nxg4 {[%clk 0:02:03]} 31. Bd4 {[%clk 0:00:38]}  Bxf4 {[%clk 0:02:02]} 0-1


[Site "https://www.chess.com"]

[Event "Titled Tuesday Blitz October 5 2021"]
[White "Vega Gutierrez, Sabrina"]
[Black "Sychev, Klementy"]
[WhiteFideId "2219026"]
[BlackFideId "4114060"]
[WhiteElo "2286"]
[BlackElo "2615"]
[Result "0-1"]
[Round "01"]
[TimeControl "180+1"]
[Date "2021.10.05"]
[WhiteClock "0:00:07"]
[BlackClock "0:01:21"]

1. e4 {[%clk 0:02:48]}  c5 {[%clk 0:02:55]} 2. Nf3 {[%clk 0:02:47]}  d6 {[%clk 0:02:56]} 3. d4 {[%clk 0:02:44]}  cxd4 {[%clk 0:02:56]} 4. Nxd4 {[%clk 0:02:45]}  Nf6 {[%clk 0:02:56]} 5. Nc3 {[%clk 0:02:45]}  g6 {[%clk 0:02:56]} 6. Be3 {[%clk 0:02:38]}  Bg7 {[%clk 0:02:55]} 7. f3 {[%clk 0:02:39]}  O-O {[%clk 0:02:55]} 8. Qd2 {[%clk 0:02:39]}  Nc6 {[%clk 0:02:55]} 9. O-O-O {[%clk 0:02:39]}  d5 {[%clk 0:02:50]} 10. Nxc6 {[%clk 0:02:39]}  bxc6 {[%clk 0:02:49]} 11. Bh6 {[%clk 0:02:40]}  Bxh6 {[%clk 0:02:30]} 12. Qxh6 {[%clk 0:02:38]}  Rb8 {[%clk 0:02:31]} 13. e5 {[%clk 0:01:38]}  Nd7 {[%clk 0:02:29]} 14. h4 {[%clk 0:01:37]}  Nxe5 {[%clk 0:02:29]} 15. h5 {[%clk 0:01:35]}  Bf5 {[%clk 0:02:22]} 16. g4 {[%clk 0:01:17]}  f6 {[%clk 0:02:21]} 17. hxg6 {[%clk 0:01:16]}  Bxg6 {[%clk 0:02:17]} 18. Be2 {[%clk 0:00:54]}  Qa5 {[%clk 0:02:10]} 19. f4 {[%clk 0:00:46]}  Rxb2 {[%clk 0:02:07]} 20. Kxb2 {[%clk 0:00:32]}  Rb8+ {[%clk 0:02:05]} 21. Kc1 {[%clk 0:00:31]}  Qxc3 {[%clk 0:02:00]} 22. f5 {[%clk 0:00:31]}  Rb2 {[%clk 0:01:40]} 23. Qd2 {[%clk 0:00:27]}  Qa3 {[%clk 0:01:38]} 24. Qe1 {[%clk 0:00:11]}  Rb3+ {[%clk 0:01:21]} 25. Kd2 {[%clk 0:00:10]}  Qb4+ {[%clk 0:01:21]} 26. Kc1 {[%clk 0:00:07]}  Rb1# {[%clk 0:01:21]} 0-1


[Site "https://www.chess.com"]

[Event "Titled Tuesday Blitz October 5 2021"]
[White "Vinod, Kumar Sharma"]
[Black "Katz, Alexander"]
[WhiteFideId "5013518"]
[BlackFideId "2039796"]
[WhiteElo "2405"]
[BlackElo "2371"]
[Result "0-1"]
[Round "01"]
[TimeControl "180+1"]
[Date "2021.10.05"]
[WhiteClock "0:00:12"]
[BlackClock "0:00:19"]

1. e4 {[%clk 0:02:57]}  e5 {[%clk 0:02:59]} 2. Nf3 {[%clk 0:02:56]}  Nc6 {[%clk 0:03:00]} 3. Bb5 {[%clk 0:02:55]}  a6 {[%clk 0:03:00]} 4. Ba4 {[%clk 0:02:55]}  Nge7 {[%clk 0:02:56]} 5. O-O {[%clk 0:02:51]}  d6 {[%clk 0:02:54]} 6. c3 {[%clk 0:02:50]}  Bd7 {[%clk 0:02:54]} 7. d4 {[%clk 0:02:49]}  Ng6 {[%clk 0:02:54]} 8. Re1 {[%clk 0:02:42]}  Be7 {[%clk 0:02:54]} 9. Nbd2 {[%clk 0:02:38]}  O-O {[%clk 0:02:54]} 10. Nf1 {[%clk 0:02:37]}  Bg4 {[%clk 0:02:53]} 11. Ng3 {[%clk 0:02:23]}  Nh4 {[%clk 0:02:31]} 12. Bxc6 {[%clk 0:02:10]}  bxc6 {[%clk 0:02:20]} 13. Qd3 {[%clk 0:02:05]}  Bxf3 {[%clk 0:02:08]} 14. gxf3 {[%clk 0:02:03]}  Qd7 {[%clk 0:02:06]} 15. Nf5 {[%clk 0:01:46]}  Nxf5 {[%clk 0:02:05]} 16. exf5 {[%clk 0:01:45]}  exd4 {[%clk 0:02:05]} 17. cxd4 {[%clk 0:01:41]}  Bf6 {[%clk 0:02:05]} 18. Bd2 {[%clk 0:01:38]}  Rfe8 {[%clk 0:02:05]} 19. Bc3 {[%clk 0:01:37]}  g6 {[%clk 0:01:56]} 20. fxg6 {[%clk 0:01:35]}  hxg6 {[%clk 0:01:57]} 21. f4 {[%clk 0:01:30]}  Qg4+ {[%clk 0:01:52]} 22. Qg3 {[%clk 0:01:29]}  Qf5 {[%clk 0:01:52]} 23. Re3 {[%clk 0:01:26]}  Kg7 {[%clk 0:01:36]} 24. Rae1 {[%clk 0:01:25]}  Rh8 {[%clk 0:01:36]} 25. h3 {[%clk 0:00:49]}  Rh4 {[%clk 0:01:33]} 26. Kg2 {[%clk 0:00:47]}  Rxf4 {[%clk 0:01:28]} 27. Rf3 {[%clk 0:00:40]}  Rxf3 {[%clk 0:01:17]} 28. Qxf3 {[%clk 0:00:41]}  Qg5+ {[%clk 0:01:09]} 29. Qg3 {[%clk 0:00:40]}  Qd5+ {[%clk 0:01:07]} 30. Qf3 {[%clk 0:00:40]}  Qxa2 {[%clk 0:00:58]} 31. Qxc6 {[%clk 0:00:38]}  Rh8 {[%clk 0:00:54]} 32. d5 {[%clk 0:00:36]}  Rh5 {[%clk 0:00:45]} 33. Bxf6+ {[%clk 0:00:34]}  Kxf6 {[%clk 0:00:46]} 34. Qc3+ {[%clk 0:00:34]}  Kg5 {[%clk 0:00:32]} 35. Qe3+ {[%clk 0:00:33]}  Kf6 {[%clk 0:00:33]} 36. Qc3+ {[%clk 0:00:33]}  Re5 {[%clk 0:00:31]} 37. f4 {[%clk 0:00:32]}  Qxd5+ {[%clk 0:00:31]} 38. Kg3 {[%clk 0:00:30]}  g5 {[%clk 0:00:22]} 39. fxe5+ {[%clk 0:00:30]}  dxe5 {[%clk 0:00:23]} 40. Rf1+ {[%clk 0:00:29]}  Kg6 {[%clk 0:00:24]} 41. Qxc7 {[%clk 0:00:27]}  f5 {[%clk 0:00:24]} 42. Qc3 {[%clk 0:00:22]}  f4+ {[%clk 0:00:23]} 43. Kh2 {[%clk 0:00:20]}  e4 {[%clk 0:00:23]} 44. Rf2 {[%clk 0:00:19]}  e3 {[%clk 0:00:22]} 45. Rg2 {[%clk 0:00:19]}  f3 {[%clk 0:00:20]} 46. Rg3 {[%clk 0:00:19]}  f2 {[%clk 0:00:20]} 47. Qxe3 {[%clk 0:00:18]}  f1=Q {[%clk 0:00:20]} 48. Qe8+ {[%clk 0:00:13]}  Qff7 {[%clk 0:00:19]} 49. Qxf7+ {[%clk 0:00:12]}  Qxf7 {[%clk 0:00:19]} 0-1


[Site "https://www.chess.com"]

[Event "Titled Tuesday Blitz October 5 2021"]
[White "Yakubboev, Nodirbek"]
[Black "Grunberg, Mihai-Lucian"]
[WhiteFideId "14203987"]
[BlackFideId "1204149"]
[WhiteElo "2464"]
[BlackElo "2364"]
[Result "1-0"]
[Round "01"]
[TimeControl "180+1"]
[Date "2021.10.05"]
[WhiteClock "0:00:09"]
[BlackClock "0:00:03"]

1. e4 {[%clk 0:02:58]}  Nf6 {[%clk 0:03:00]} 2. e5 {[%clk 0:02:58]}  Nd5 {[%clk 0:03:00]} 3. c4 {[%clk 0:02:58]}  Nb6 {[%clk 0:03:00]} 4. d4 {[%clk 0:02:58]}  d6 {[%clk 0:03:00]} 5. exd6 {[%clk 0:02:58]}  cxd6 {[%clk 0:03:01]} 6. Nc3 {[%clk 0:02:56]}  g6 {[%clk 0:03:01]} 7. Be3 {[%clk 0:02:46]}  Bg7 {[%clk 0:03:01]} 8. Rc1 {[%clk 0:02:46]}  O-O {[%clk 0:03:01]} 9. b3 {[%clk 0:02:38]}  e5 {[%clk 0:03:02]} 10. dxe5 {[%clk 0:02:32]}  dxe5 {[%clk 0:03:02]} 11. Nf3 {[%clk 0:02:20]}  Nc6 {[%clk 0:02:52]} 12. Be2 {[%clk 0:01:51]}  Bg4 {[%clk 0:02:19]} 13. c5 {[%clk 0:01:34]}  Nd7 {[%clk 0:02:14]} 14. O-O {[%clk 0:01:34]}  Re8 {[%clk 0:01:59]} 15. h3 {[%clk 0:01:20]}  Bxf3 {[%clk 0:01:56]} 16. Bxf3 {[%clk 0:01:21]}  Rb8 {[%clk 0:01:49]} 17. Nb5 {[%clk 0:01:06]}  e4 {[%clk 0:01:39]} 18. Be2 {[%clk 0:01:03]}  Nde5 {[%clk 0:01:30]} 19. Nd6 {[%clk 0:00:58]}  Re7 {[%clk 0:01:21]} 20. a3 {[%clk 0:00:57]}  Rd7 {[%clk 0:01:04]} 21. Qd5 {[%clk 0:00:48]}  Nd3 {[%clk 0:00:54]} 22. Bxd3 {[%clk 0:00:44]}  exd3 {[%clk 0:00:54]} 23. Qxd3 {[%clk 0:00:42]}  Bb2 {[%clk 0:00:52]} 24. b4 {[%clk 0:00:18]}  Bxc1 {[%clk 0:00:51]} 25. Rxc1 {[%clk 0:00:19]}  Qf6 {[%clk 0:00:47]} 26. b5 {[%clk 0:00:18]}  Ne5 {[%clk 0:00:46]} 27. Qe4 {[%clk 0:00:15]}  Qe6 {[%clk 0:00:36]} 28. f4 {[%clk 0:00:12]}  Rxd6 {[%clk 0:00:21]} 29. cxd6 {[%clk 0:00:13]}  Nd7 {[%clk 0:00:19]} 30. Qxe6 {[%clk 0:00:14]}  fxe6 {[%clk 0:00:19]} 31. Rc7 {[%clk 0:00:14]}  Nf6 {[%clk 0:00:18]} 32. Bxa7 {[%clk 0:00:15]}  Rd8 {[%clk 0:00:18]} 33. Rxb7 {[%clk 0:00:12]}  Rxd6 {[%clk 0:00:17]} 34. a4 {[%clk 0:00:13]}  Ne4 {[%clk 0:00:15]} 35. a5 {[%clk 0:00:11]}  h5 {[%clk 0:00:14]} 36. Kf1 {[%clk 0:00:11]}  h4 {[%clk 0:00:11]} 37. Ke2 {[%clk 0:00:10]}  Nc3+ {[%clk 0:00:07]} 38. Ke3 {[%clk 0:00:10]}  Rd5 {[%clk 0:00:07]} 39. Bd4 {[%clk 0:00:08]}  Nxb5 {[%clk 0:00:06]} 40. Be5 {[%clk 0:00:08]}  Na3 {[%clk 0:00:04]} 41. a6 {[%clk 0:00:09]}  Nc4+ {[%clk 0:00:04]} 42. Ke4 {[%clk 0:00:09]}  Nxe5 {[%clk 0:00:02]} 43. fxe5 {[%clk 0:00:09]}  Ra5 {[%clk 0:00:03]} 44. a7 {[%clk 0:00:09]} 1-0


[Site "https://www.chess.com"]

[Event "Titled Tuesday Blitz October 5 2021"]
[White "Zhigalko, Sergei"]
[Black "Devaev, Alexander"]
[WhiteFideId "13502956"]
[BlackFideId "4169395"]
[WhiteElo "2662"]
[BlackElo "2185"]
[Result "1-0"]
[Round "01"]
[TimeControl "180+1"]
[Date "2021.10.05"]
[WhiteClock "0:00:08"]
[BlackClock "0:00:11"]

1. e4 {[%clk 0:02:58]}  c6 {[%clk 0:02:48]} 2. d4 {[%clk 0:02:57]}  d5 {[%clk 0:02:43]} 3. e5 {[%clk 0:02:58]}  Bf5 {[%clk 0:02:43]} 4. Nf3 {[%clk 0:02:58]}  e6 {[%clk 0:02:43]} 5. Be2 {[%clk 0:02:58]}  Nd7 {[%clk 0:02:44]} 6. O-O {[%clk 0:02:58]}  Be7 {[%clk 0:02:44]} 7. Nbd2 {[%clk 0:02:58]}  Bg6 {[%clk 0:02:45]} 8. a4 {[%clk 0:02:55]}  a5 {[%clk 0:02:43]} 9. Nb3 {[%clk 0:02:49]}  Nh6 {[%clk 0:02:42]} 10. Ne1 {[%clk 0:02:46]}  O-O {[%clk 0:02:41]} 11. Nd3 {[%clk 0:02:46]}  b6 {[%clk 0:02:30]} 12. Nf4 {[%clk 0:02:45]}  c5 {[%clk 0:02:18]} 13. c3 {[%clk 0:02:30]}  Nf5 {[%clk 0:01:45]} 14. Bb5 {[%clk 0:02:27]}  Qc7 {[%clk 0:01:23]} 15. g3 {[%clk 0:02:21]}  Nh6 {[%clk 0:00:45]} 16. h4 {[%clk 0:01:51]}  Bf5 {[%clk 0:00:45]} 17. Re1 {[%clk 0:01:06]}  Rad8 {[%clk 0:00:27]} 18. Bd2 {[%clk 0:01:01]}  Nb8 {[%clk 0:00:27]} 19. Nh5 {[%clk 0:00:51]}  Bg6 {[%clk 0:00:23]} 20. Nf4 {[%clk 0:00:49]}  Bf5 {[%clk 0:00:23]} 21. Nh5 {[%clk 0:00:43]}  c4 {[%clk 0:00:21]} 22. Nc1 {[%clk 0:00:41]}  Bg4 {[%clk 0:00:21]} 23. f3 {[%clk 0:00:30]}  Bxh5 {[%clk 0:00:22]} 24. g4 {[%clk 0:00:30]}  Bg6 {[%clk 0:00:22]} 25. h5 {[%clk 0:00:31]}  Bd3 {[%clk 0:00:22]} 26. Nxd3 {[%clk 0:00:31]}  cxd3 {[%clk 0:00:22]} 27. Bxd3 {[%clk 0:00:32]}  Nc6 {[%clk 0:00:22]} 28. Qc2 {[%clk 0:00:32]}  Kh8 {[%clk 0:00:21]} 29. Bxh7 {[%clk 0:00:32]}  g6 {[%clk 0:00:18]} 30. hxg6 {[%clk 0:00:25]}  Nxd4 {[%clk 0:00:19]} 31. Qd3 {[%clk 0:00:24]}  Nxf3+ {[%clk 0:00:18]} 32. Qxf3 {[%clk 0:00:23]}  fxg6 {[%clk 0:00:18]} 33. Qh3 {[%clk 0:00:24]}  Kxh7 {[%clk 0:00:12]} 34. Qxh6+ {[%clk 0:00:24]}  Kg8 {[%clk 0:00:13]} 35. Qxg6+ {[%clk 0:00:24]}  Kh8 {[%clk 0:00:13]} 36. Kg2 {[%clk 0:00:23]}  Bh4 {[%clk 0:00:11]} 37. Be3 {[%clk 0:00:11]}  Qh7 {[%clk 0:00:09]} 38. Qxh7+ {[%clk 0:00:11]}  Kxh7 {[%clk 0:00:10]} 39. Rh1 {[%clk 0:00:11]}  Kg6 {[%clk 0:00:09]} 40. Rxh4 {[%clk 0:00:11]}  d4 {[%clk 0:00:09]} 41. cxd4 {[%clk 0:00:11]}  Rc8 {[%clk 0:00:10]} 42. Rah1 {[%clk 0:00:08]}  Rc2+ {[%clk 0:00:10]} 43. Kg3 {[%clk 0:00:08]}  Rg8 {[%clk 0:00:11]} 44. Rh7 {[%clk 0:00:08]} 1-0


[Site "https://www.chess.com"]